Cogmind - Beta 13 *** ADVENTURER MODE // 2024.05.01 @ 14:01:26 Player: Fettuccine Result: Destroyed self via exploding Fusion Modulator Performance ------------- Evolutions (0) 0 Regions Visited (1) 200 Robots Destroyed (30) 150 Value Destroyed (900) 900 Prototype IDs (0) 0 Alien Tech Used (0) 0 Bonus (75) 75 TOTAL SCORE: 1325 Bonus ------- High Alert Combat Kills 75 Cogmind --------- Core Integrity 0/250 Matter 41/300 Energy 93/100 System Corruption 6% Temperature Cool (12) Movement Core (200) Ox3 Location -10/Materials Parts ------- > --- POWER (1) -------- (None) > --- PROPULSION (2) --- (None) > --- UTILITY (2) ------ Heat Sink Medium Storage Unit > --- WEAPON (2) ------- (None) > --- INVENTORY (10) --- Light Ion Engine Hover Unit Hover Unit Improved Heat Sink Medium Storage Unit Peak State ------------ > --- POWER ------------ Light Ion Engine > --- PROPULSION ------- Aluminum Leg Aluminum Leg > --- UTILITY ---------- Heat Sink Improved Heat Sink > --- WEAPON ----------- Grenade Launcher Rocket Launcher > --- INVENTORY -------- Ion Engine Improved Aluminum Leg Small Laser Particle Cannon [Rating: 10] Favorites ----------- Power Light Ion Engine Engine Light Ion Engine Propulsion Aluminum Leg Leg Aluminum Leg Hover Unit Hover Unit Utility Heat Sink Device Heat Sink Storage Medium Storage Unit Weapon Grenade Launcher Energy Gun Small Laser Launcher Grenade Launcher Build | -11 -10 ------- Run | Yrd Mat Slots Evolved . | . . Power . | . . Propulsion . | . . Utility . | . . Weapon . | . . Parts Attached 28 | 6 22 Power 4 | 1 3 Engine 4 | 1 3 Core . | . . Reactor . | . . Propulsion 6 | 2 4 Treads . | . . Leg 4 | 2 2 Wheel . | . . Hover 2 | . 2 Flight . | . . Utility 8 | . 8 Device 4 | . 4 Storage 4 | . 4 Processor . | . . Hackware . | . . Protection . | . . Artifact . | . . Weapon 10 | 3 7 Energy Gun 6 | 3 3 Energy Cannon . | . . Ballistic Gun . | . . Ballistic Cannon . | . . Launcher 4 | . 4 Special Weapon . | . . Impact Weapon . | . . Slashing Weapon . | . . Piercing Weapon . | . . Special Melee Weapon . | . . Unidentified Prototypes . | . . Parts Lost 7 | . 7 Power 1 | . 1 Propulsion 2 | . 2 Utility . | . . Weapon 4 | . 4 Highest Loss Streak 5 | . 5 To Critical Strikes . | . . Average Slot Usage (%) 93 | . 93 Engine 13 | . 13 Leg 21 | . 21 Hover 5 | . 5 Device 20 | . 20 Storage 2 | . 2 Energy Gun 13 | . 13 Launcher 14 | . 14 Naked Turns . | . . Heaviest Build 22 | 6 22 Greatest Support 20 | 20 20 Greatest Overweight (x) 3 | . 3 Average Overweight (x) . | . . Largest Inventory Capacity 20 | 5 20 Average Capacity 5 | 5 6 Most Carried 6 | 4 6 Average Carried 4 | 2 4 Final Capacity 10 | 5 10 Final Carried 5 | 4 5 Class Distribution -------------------- 89% | Mutant 10% | Scavenger-Mutant Dominant Class ---------------- Mutant | -10/Materials Resources | -11 -10 ----------- Run | Yrd Mat Matter Collected 579 | 260 319 Remotely . | . . Salvage Created 694 | 40 654 Parts 46 | 4 42 Haulers Intercepted 1 | . 1 Recyclers Shooed . | . . Parts Field Recycled . | . . Retrieved Matter . | . . Parts Self-Destructed . | . . Prevented . | . . Kills | -11 -10 ------- Run | Yrd Mat Combat Hostiles Destroyed 19 | 1 18 Guns 3 | 1 2 AOE 16 | . 16 Classes Destroyed 6 | 1 5 Worker 2 | . 2 Builder 4 | . 4 Hauler 1 | . 1 Mechanic 1 | . 1 Watcher 3 | . 3 Grunt 19 | 1 18 Best Kill Streak 5 | 1 5 Combat Bots Only 5 | 1 5 Max Kills in Single Turn 3 | 1 3 Gunslinging . | . . Exploded 3 | . 3 Melee . | . . Uniques/NPCs Destroyed . | . . Combat | -11 -10 -------- Run | Yrd Mat Hostile Shots Fired 48 | 2 46 Missed 17 | . 17 Damage Taken 764 | 17 747 Core 271 | 9 262 Absorbed by Shields . | . . Ignored by Resistances 165 | 5 160 Core Remaining (%) 96 | 96 . Volleys Fired 42 | 2 40 Largest 2 | 2 2 Hottest 80 | 80 80 Shots Fired 80 | 4 76 Gun 41 | 4 37 Cannon . | . . Launcher 39 | . 39 Special . | . . Kinetic . | . . Thermal 20 | 2 18 Explosive 39 | . 39 Electromagnetic 21 | 2 19 Robot Hit Streak 13 | 2 13 Robot Miss Streak 2 | 1 2 Penetration Max . | . . Secondary Targets . | . . Shots Hit Robots 48 | 2 46 Core Hits 46 | 2 44 Critical Kills . | . . Critical Parts Destroyed . | . . Critical Strikes . | . . Melee Attacks . | . . Impact . | . . Slashing . | . . Piercing . | . . Sneak Attacks . | . . Combat Hostiles . | . . Follow-up Attacks . | . . Damage Inflicted 1939 | 26 1913 Guns 317 | 26 291 Cannons . | . . Explosions 1622 | . 1622 Melee . | . . Ramming . | . . Kinetic . | . . Thermal 188 | 11 177 Explosive 1602 | . 1602 Electromagnetic 149 | 15 134 Impact . | . . Slashing . | . . Piercing . | . . Highest Corruption 6 | . 6 Average Corruption 6 | . 6 Corruption Purged . | . . Corruption Blocked . | . . Overload Shots . | . . Overflow Damage 78 | . 78 Projectiles . | . . Explosions 78 | . 78 Melee . | . . Knockbacks . | . . Impact . | . . Kinetic . | . . Secondary . | . . Self-Inflicted Damage 270 | . 270 Shots 8 | . 8 Rammed . | . . Targets Rammed . | . . Kicked . | . . Crushed . | . . Highest Temperature 48 | 48 12 Average Temperature 13 | 28 4 Received Heat Transfer 219 | 12 207 Siege Activations . | . . Robots Corrupted . | . . Combat Hostiles . | . . Parts Fried . | . . Impact Corruptions . | . . Robots Melted . | . . Combat Hostiles . | . . Parts Melted 1 | . 1 Heat Transferred 375 | 25 350 Parts Sabotaged . | . . Parts Stolen . | . . Parts Stripped . | . . Power Chain Reactions 1 | . 1 Alert | -11 -10 ------- Run | Yrd Mat Peak Influence 595 | 20 595 Initial 11 | . 11 Average 164 | 11 193 Maximum Alert Level 2 | . 2 Low Security (%) 68 | 100 62 Level 1 17 | . 20 Level 2 14 | . 17 Level 3 . | . . Level 4 . | . . Level 5 . | . . High Security . | . . Max Security . | . . Squads Dispatched 5 | . 5 Investigation 5 | . 5 Extermination . | . . Reinforcement . | . . Assault . | . . Garrison . | . . Intercept . | . . Searches Triggered . | . . Construction Impeded . | . . Haulers Reinforced . | . . Active Scanning Responses . | . . Cargo Convoy Interrupts . | . . Stealth | -11 -10 --------- Run | Yrd Mat Distress Signals . | . . Communications Jammed . | . . Distress Signals . | . . Times Spotted 25 | 1 24 Peak Tracking Total 3 | 1 3 Tactical Retreats . | . . Traps | -11 -10 ------- Run | Yrd Mat Traps Triggered 2 | . 2 Indirectly . | . . Trap Hack Attempts . | . . Triggered . | . . Disarmed . | . . Reprogrammed . | . . Reused . | . . Traps Extracted . | . . Installed . | . . Triggered . | . . Machines | -11 -10 ---------- Run | Yrd Mat Machines Disabled 13 | . 13 Max in Single Turn 3 | . 3 Machines Repaired . | . . Machines Dismantled . | . . Machines Sabotaged . | . . Overloaded Fab Kills . | . . Hacking | -11 -10 --------- Run | Yrd Mat Machines Accessed 6 | . 6 Terminals 5 | . 5 Fabricators . | . . Repair Stations . | . . Recycling Units 1 | . 1 Scanalyzers . | . . Garrison Access . | . . Total Hacks 28 | . 28 Successful 12 | . 12 Failed 16 | . 16 Catastrophic 2 | . 2 Database Lockouts . | . . Manual . | . . Terminals 25 | . 25 Fabricators . | . . Repair Stations . | . . Recycling Units 3 | . 3 Scanalyzers . | . . Garrison Access . | . . Terminal Hacks 11 | . 11 Record 7 | . 7 Robot Analysis 1 | . 1 Emergency Access Points 1 | . 1 Alert Level 1 | . 1 Reinforcement Status 1 | . 1 Fabricator Hacks . | . . Repair Station Hacks . | . . Recycling Unit Hacks 1 | . 1 Retrieve Components 1 | . 1 Scanalyzer . | . . Garrison Access Hacks . | . . Unauthorized Hacks . | . . Terminals . | . . Fabricators . | . . Repair Stations . | . . Recycling Units . | . . Scanalyzers . | . . Garrison Access . | . . Data Cores Recovered . | . . Used . | . . Hacking Detections 6 | . 6 Full Trace Events 6 | . 6 Feedback Events . | . . Feedback Blocked . | . . Robot Schematics Acquired . | . . Robots Built . | . . Authchips . | . . Time . | . . Total Robot Build Rating . | . . Part Schematics Acquired . | . . Parts Built . | . . Authchips . | . . Time . | . . Total Part Build Rating . | . . Parts Repaired . | . . Time . | . . Parts Recycled . | . . Recycled Matter . | . . Retrieved Matter . | . . Retrieved Components 3 | . 3 Parts Scanalyzed . | . . Part Schematics Acquired . | . . Parts Damaged . | . . Bothacking | -11 -10 ------------ Run | Yrd Mat Used RIF Installer . | . . Robots Hacked . | . . Non-combat . | . . Combat . | . . Robot Hacks Applied . | . . Relay Couplers Released . | . . Fabnet Peak Effective % . | . . Robots Rewired . | . . Allies Hacked . | . . Hacks Repelled . | . . Allies | -11 -10 -------- Run | Yrd Mat Total Allies . | . . Largest Group . | . . Highest-Rated Group . | . . Highest-Rated Ally . | . . Total Orders . | . . Ally Attacks . | . . Total Damage . | . . Kills . | . . Allies Corrupted . | . . Allies Melted . | . . Intel | -11 -10 ------- Run | Yrd Mat Robot Analysis Total 1 | . 1 Derelict Logs Recovered . | . . Drone Launches . | . . Drone Recoveries . | . . Exploration | -11 -10 ------------- Run | Yrd Mat Turns Passed 1188 | 193 995 Spaces Moved 816 | 154 662 Core 18 | 18 . Treads . | . . Legs 658 | 136 522 Wheels . | . . Hover 140 | . 140 Flight . | . . Fastest Speed 50 | 50 56 Average Speed 121 | 111 124 Slowest Speed 240 | 120 240 Overloaded Moves . | . . Propulsion Burnouts . | . . Robots Hopped . | . . Cave-ins Triggered 1 | . 1 Exploration Rate (%) 42 | 8 77 Regions Visited 1 Branch Regions . Pre-discovered Areas . | . . Known Exits Taken . | . . Unknown Exits Taken 1 | 1 . Scrap Searched . | . . Spaces Dug . | . . Terrain Destroyed 274 | . 274 Melee . | . . Projectile . | . . AOE 274 | . 274 Terrain Rammed . | . . Walls Destroyed . | . . Machines Disabled . | . . Actions | -11 -10 --------- Run | Yrd Mat Total 929 | 170 759 Wait . | . . Move 815 | 153 662 Hop . | . . Pick Up 28 | 9 19 Fast Attach 1 | . 1 Attach 11 | 5 6 Detach 1 | . 1 Swap 16 | 1 15 Drop 15 | . 15 Fire 42 | 2 40 Melee . | . . Ram . | . . Kick . | . . Crush . | . . Escape Stasis . | . . Rewire . | . . Trap . | . . Miscellaneous . | . . Route ------- -11/Scrapyard -10/Materials (discovered 2 exits: [*Mat x2]) History --------- Turn | Location | Event 2 | -11/Scrapyard | Met Revision 17 71 | -11/Scrapyard | Discovered new exit (range 8) 194 | -11/Scrapyard | Entered Materials 218 | -10/Materials | Discovered new exit (range 14) 312 | -10/Materials | Build established: Mutant 1129 | -10/Materials | Discovered new exit (range 10) 1153 | -10/Materials | Crushed by falling debris 1153 | -10/Materials | Core integrity fell below 50% 1153 | -10/Materials | Core integrity fell below 20% 1189 | -10/Materials | Destroyed self via exploding Fusion Modulator Last Messages --------------- G-34 Mercenary destroyed. EXIT=FOUND U-05 Engineer lays Concrete. Fusion Modulator explodes. U-05 Engineer lays Concrete. The unstable cave ceiling collapses. Crushed by falling debris. Grenade Launcher destroyed. System corrupted by crushing effect (+4). Ion Engine destroyed. System corrupted by crushing effect (+2). Acquired Med. Storage Unit. Grenade Launcher destroyed. Destroyed Grenade Launcher. The unstable cave ceiling collapses. Hover Unit destroyed. Destroyed Hover Unit. Fusion Modulator explodes. Rocket Launcher destroyed. Destroyed Rocket Launcher. Map ----- +----------------------------------------------------+ | | | | | | | | | | | | | ?????????????????????????????????????????????????? | | ###?????##########???????????????????????????????? | | T #?????# #???????????????????????????????? | | #?????# #???????????????????????????????? | | ###???# #???????????????????????????????? | | #??## = #???????????????????????????????? | | #### +???????????????????????????????? | | "## # ############????????????????????? | | # # #????????????????????? | | "### # < # +????????????????????? | | " ### # """ #????????????????????? | | ""##### """ #????????????????????? | | "" """ #????????????????????? | | "## ! #????????????????????? | | ;;#######?????????????????? | | # #########; # #?????????????????? | | # #???????# ; !##????????????????? | | # ^^#???????##; ;# #????????????? | | # #???????# ; ;; #????????????? | | # #???????##; @ ;#????????????????? | | # #????????#; ; #???????????? | | # #????????## ; ????????? | | # ##?###????# ; ?????????? | | #"""#????#! ; ; ?????????? | | # #"Y"#????##########; "# ##??????????? | | #" "#########?????## T#?#####???????????? | | #?????# "#?????????????????? | | #?????# #?????????????????? | | = = #??????#######?????????????????? | | """ """ ""?????????????????????????????????? | | # # """ ""?????????????????????????????????????? | | # # """ "??????????????????????????????????????? | | # ########?????????????????????????????????????? | | # # #?????????????????????????????????????? | | # # #??????????????????????#??????????????? | | # # """ #????????????????????? #??????????????? | | # + """ #????????????????????? #??????????????? | | # # """ #????????????????????? #??????????????? | | # # #????????????????????? #??????????????? | | # ###############????????###### #??????????????? | | # = #????????+ #??????????????? | | # """ [= #????????# #??????????????? | | # """ * " " #????????# ####???????????? | | ## """ ** "Y" #????????+ ###+#####???? | +----------------------------------------------------+ Best States ------------- Heat Dissipation 49 Energy Generation 10 Energy Capacity 250 Matter Stores 300 Matter Capacity 300 Sight Range 16 Terrain Scan Density 10 Resistance: KI 20 Resistance: TH 20 Resistance: EX 20 Resistance: EM 20 Resistance: I 20 Resistance: S 20 Resistance: P 20 Evasion (%) 55 Offensive Hacking 10 Item Schematics ----------------- None Robot Schematics ------------------ None Fabricated ------------ Nothing Alien Tech Used ----------------- None Achievements -------------- None Challenges ------------ None Game ------ Seed MasterDecoyTrap Manual? 0 Play Time 00:19:53 Cumulative 2.0 hours Start 2024.05.01 @ 13:42:58 End 2024.05.01 @ 14:01:26 Sessions 1 Manual Loads 0 Difficulty Adventurer Special Mode None Game No. 2 Rogue 0 Adventurer 2 Explorer 0 Win Type - Total 0 Types 0/0/0/0/0/0/0/0/0 Lore% 1 Gallery% 4 Achievement% 5 Wizard Run 0 Options --------- Layout 1 ASCII 0 Keyboard 0 Movement Mouse Keybinds 0 Fullscreen 1 Font 24/Smallcaps Map View 50x35 Zoom Use 0% Tactical HUD 0 Map Filters NONE Filters NONE Steam 1 RUN: 26a30319-1f64-418b-827a-dd959ad8ed77